[Event "1st GM Brena Baja-La Palma 2019"]
[Site "La Palma"]
[Date "2019.03.29"]
[Round "2.3"]
[White "Hernandez Leon, Alberto"]
[Black "Herrera Reyes, Jose Antonio"]
[Result "1/2-1/2"]
[ECO "C42"]
[WhiteElo "2280"]
[BlackElo "2324"]
[Annotator "NA"]
[PlyCount "54"]
[EventDate "2019.03.23"]
[EventType "tourn"]
[EventCountry "ESP"]
[SourceTitle "playchess.com"]
[Source "ChessBase"]
[SourceQuality "1"]
[TimeControl "5400+30"]

1. e4 {[%emt 0:00:00]} e5 {[%emt 0:00:00]} 2. Nf3 {[%emt 0:00:09]} Nf6 {[%emt 0:01:18]} 3. Nxe5 {[%emt 0:01:03]} d6 {[%emt 0:00:53]} 4. Nf3 {[%emt 0:00:23]} Nxe4 {[%emt 0:00:05]} 5. Nc3 {[%emt 0:01:47]} Nxc3 {[%emt 0:00:42]} 6. dxc3 {[%emt 0:00:16]} Be7 {[%emt 0:00:10]} 7. Bf4 {[%emt 0:01:01]} Be6 {[%emt 0:00:23]} 8. Qd2 {[%emt 0:01:11]} Nc6 {[%emt 0:01:11]} 9. Nd4 {[%emt 0:00:20]} Nxd4 {[%emt 0:00:51]} 10. cxd4 {[%emt 0:00:18]} d5 {[%emt 0:00:09]} 11. Bd3 {[%emt 0:00:24]} Bd6 {[%emt 0:00:48]} 12. O-O {[%emt 0:01:24]} O-O {[%emt 0:00:33]} 13. Rfe1 {[%emt 0:00:29]} c6 {[%emt 0:00:35]} 14. c3 {[%emt 0:00:33]} Qc7 {[%emt 0:00:26]} 15. Bxd6 {[%emt 0:00:20]} Qxd6 {[%emt 0:00:02]} 16. Qg5 {[%emt 0:01:23]} h6 {[%emt 0:00:45]} 17. Qe5 {[%emt 0:00:11]} Rad8 {[%emt 0:01:21]} 18. Qxd6 {[%emt 0:00:29]} Rxd6 {[%emt 0:00:01]} 19. Re3 {[%emt 0:00:22]} Re8 {[%emt 0:02:32]} 20. Rae1 {[%emt 0:00:53]} Kf8 {[%emt 0:00:31]} 21. f4 {[%emt 0:01:25]} Bd7 {[%emt 0:00:19]} 22. g3 {[%emt 0:00:39]} Rxe3 {[%emt 0:01:03]} 23. Rxe3 {[%emt 0:00:05]} Re6 {[%emt 0:02:09]} 24. Rxe6 {[%emt 0:00:11]} Bxe6 {[%emt 0:00:01]} 25. Kf2 {[%emt 0:00:12]} f6 {[%emt 0:00:30]} 26. Ke3 {[%emt 0:00:21]} Ke7 {[%emt 0:00:07]} 27. f5 {[%emt 0:01:21]} Bf7 {[%emt 0:00:39]} 1/2-1/2

[Event "1st GM Brena Baja-La Palma 2019"]
[Site "La Palma"]
[Date "2019.03.30"]
[Round "3.3"]
[White "Herrera Reyes, Jose Antonio"]
[Black "Napoli, Nicolo"]
[Result "0-1"]
[ECO "A07"]
[WhiteElo "2324"]
[BlackElo "2321"]
[Annotator "NA"]
[PlyCount "118"]
[EventDate "2019.03.23"]
[EventType "tourn"]
[EventCountry "ESP"]
[SourceTitle "playchess.com"]
[Source "ChessBase"]
[SourceQuality "1"]
[TimeControl "5400+30"]

1. Nf3 {[%emt 0:00:56]} Nf6 {[%emt 0:00:00]} 2. g3 {[%emt 0:03:31]} d5 {[%emt 0:00:00]} 3. Bg2 {[%emt 0:00:05]} c6 {[%emt 0:00:17]} 4. d3 {[%emt 0:00:29]} Bf5 {[%emt 0:00:27]} 5. O-O {[%emt 0:00:20]} e6 {[%emt 0:00:32]} 6. c3 {[%emt 0:05:36] A07: Réti Opening: New York and Capablanca Systems} (6. b3 h6 7. Bb2 Be7 8. Nbd2 O-O 9. c4 a5 10. a3 Bh7 11. Qc2 Na6 12. Ne5 Nd7 13. Nxd7 Qxd7 14. Nf3 Rfc8 15. Bc3 Qd8 16. Qb2 Bf6 17. Ne5 Nc5 18. Bd4 Qd6 19. f4 dxc4 20. dxc4 Nxb3 21. Qxb3 Qxd4+ {0-1 (49) Caruana,F (2808)-Grischuk,A (2761) Paris 2017}) 6... Be7 {[%emt 0:00:29]} 7. Qb3 {[%emt 0:01:27]} Qb6 {[%emt 0:00:10]} 8. Be3 {[%emt 0:00:18]} Qa6 {[%emt 0:09:50]} 9. a4 $146 {[%emt 0:05:37]} ({Predecessor:} 9. h3 h6 10. a4 Nbd7 11. Nbd2 Bc5 12. Bxc5 Nxc5 13. Qa3 b6 {1-0 (64) Levay,S (2217)-Kristofori,A (2082) Corund 2016}) 9... Nbd7 {[%emt 0:03:15]} 10. Qc2 {[%emt 0:02:32]} O-O {[%emt 0:12:12]} 11. b4 {[%emt 0:04:14]} Ng4 {[%emt 0:03:43]} 12. Bd2 {[%emt 0:04:31]} c5 {[%emt 0:01:21]} 13. b5 {[%emt 0:07:30]} Qd6 {[%emt 0:02:20]} 14. e4 {[%emt 0:04:06]} Bg6 {[%emt 0:00:47]} 15. exd5 {[%emt 0:03:57]} c4 {[%emt 0:04:36]} 16. Ne1 {[%emt 0:04:20]} Nge5 {[%emt 0:13:20]} 17. Qa2 {[%emt 0:03:05]} exd5 {[%emt 0:03:03]} 18. d4 {[%emt 0:00:42]} Ng4 {[%emt 0:03:09]} 19. h3 {[%emt 0:13:27]} Ngf6 {[%emt 0:00:34]} 20. Bf4 {[%emt 0:00:08]} Qb6 {[%emt 0:01:50]} 21. Nd2 {[%emt 0:03:45]} Rfe8 {[%emt 0:00:47]} 22. a5 {[%emt 0:01:38]} Qxb5 {[%emt 0:01:59]} 23. Nc2 {[%emt 0:00:34]} Bf8 {[%emt 0:04:00]} 24. Ne3 {[%emt 0:02:16]} Bd3 {[%emt 0:08:59]} 25. Rfc1 {[%emt 0:06:30]} Rac8 {[%emt 0:04:52]} 26. g4 {[%emt 0:03:07]} Ne4 27. Nf3 {[%emt 0:02:16]} Qc6 {[%emt 0:05:18]} 28. Qa4 {[%emt 0:00:00]} Ndf6 {[%emt 0:02:07]} 29. Ne5 $15 {[%emt 0:01:57]} Qe6 {[%emt 0:01:09]} 30. Qd1 {[%emt 0:02:30]} Bd6 {[%emt 0:01:12]} 31. f3 {[%emt 0:04:14]} Nc5 {[%emt 0:00:43]} 32. Bh2 {[%emt 0:01:53]} Nb3 33. g5 {[%emt 0:00:00]} Nxc1 34. Rxc1 Nd7 {[%emt 0:00:07]} 35. f4 {[%emt 0:00:00]} Nxe5 {[%emt 0:03:37]} 36. fxe5 {[%emt 0:01:37]} Ba3 {[%emt 0:00:19]} 37. Ra1 {[%emt 0:01:12]} Bb2 {[%emt 0:00:19]} 38. Nxd5 {[%emt 0:01:35]} Bxa1 {[%emt 0:01:14]} 39. Qxa1 {[%emt 0:00:01]} Qf5 {[%emt 0:00:49]} 40. Qe1 {[%emt 0:02:31]} Qxg5 {[%emt 0:02:30]} 41. h4 {[%emt 0:01:24]} Qg4 {[%emt 0:01:34]} 42. Bf4 {[%emt 0:02:48]} Rc6 {[%emt 0:01:28]} 43. Qf2 {[%emt 0:01:38]} Rg6 {[%emt 0:00:57]} 44. Bg5 {[%emt 0:00:51]} h6 {[%emt 0:01:08]} 45. Ne3 {[%emt 0:00:36]} Qd7 {[%emt 0:01:32]} 46. Bf4 {[%emt 0:00:23]} Be4 {[%emt 0:02:05]} 47. h5 {[%emt 0:00:01]} Rxg2+ {[%emt 0:00:07]} 48. Nxg2 {[%emt 0:00:05]} Qg4 {[%emt 0:00:04]} 49. Bg3 {[%emt 0:00:07]} Qxh5 {[%emt 0:00:48]} 50. Qe3 {[%emt 0:00:55]} Qd1+ {[%emt 0:00:53]} 51. Ne1 {[%emt 0:00:53]} Bd5 {[%emt 0:00:22]} 52. Qf4 {[%emt 0:01:01]} Re6 {[%emt 0:00:37]} 53. Qh4 {[%emt 0:00:12]} Rg6 {[%emt 0:00:37]} 54. Kf1 {[%emt 0:00:20]} Kh7 {[%emt 0:00:44]} 55. Qf4 {[%emt 0:00:56]} b6 {[%emt 0:00:58]} 56. a6 {[%emt 0:00:35]} b5 {[%emt 0:00:08]} 57. Kf2 {[%emt 0:00:40]} b4 {[%emt 0:00:32]} 58. cxb4 {[%emt 0:00:04]} c3 {[%emt 0:00:05]} 59. Qe3 {[%emt 0:00:54]} Qd2+ {[%emt 0:00:23]} 0-1

[Event "1st GM Brena Baja-La Palma 2019"]
[Site "La Palma"]
[Date "2019.03.30"]
[Round "4.4"]
[White "Alvarado Diaz, Alejandro"]
[Black "Herrera Reyes, Jose Antonio"]
[Result "1/2-1/2"]
[ECO "C67"]
[WhiteElo "2399"]
[BlackElo "2324"]
[Annotator "ChessBase"]
[PlyCount "83"]
[EventDate "2019.03.23"]
[EventType "tourn"]
[EventCountry "ESP"]
[SourceTitle "playchess.com"]
[Source "ChessBase"]
[SourceQuality "1"]
[TimeControl "5400+30"]

1. e4 {[%emt 0:00:00]} e5 {[%emt 0:01:13]} 2. Nf3 {[%emt 0:00:00]} Nc6 {[%emt 0:00:06]} 3. Bb5 {[%emt 0:00:34]} Nf6 {[%emt 0:00:09]} 4. O-O {[%emt 0:00:53]} Nxe4 {[%emt 0:00:21]} 5. d4 {[%emt 0:00:38]} Nd6 {[%emt 0:00:06]} 6. Bxc6 {[%emt 0:00:28]} dxc6 {[%emt 0:00:07]} 7. dxe5 {[%emt 0:00:06]} Nf5 {[%emt 0:00:07]} 8. Qxd8+ {[%emt 0:00:06]} Kxd8 {[%emt 0:00:05]} 9. Nc3 {[%emt 0:00:42]} Bd7 {[%emt 0:01:53]} 10. h3 {[%emt 0:01:31]} b6 {[%emt 0:01:27]} 11. Bf4 {[%emt 0:01:13]} Kc8 {[%emt 0:00:34]} 12. Rad1 {[%emt 0:01:19]} h6 {[%emt 0:04:09]} 13. Bh2 {[%emt 0:01:33]} a5 {[%emt 0:00:25]} 14. g4 {[%emt 0:00:44]} Ne7 {[%emt 0:00:14]} 15. Nd4 {[%emt 0:00:06]} h5 {[%emt 0:01:00]} 16. e6 {[%emt 0:00:42]} fxe6 {[%emt 0:01:05]} 17. Rfe1 {[%emt 0:00:09]} hxg4 {[%emt 0:00:09]} 18. hxg4 {[%emt 0:00:04]} Rh6 {[%emt 0:00:08]} 19. g5 {[%emt 0:01:19]} Rh5 {[%emt 0:01:12]} 20. Nxe6 {[%emt 0:00:40]} Bxe6 {[%emt 0:00:08]} 21. Rxe6 {[%emt 0:00:03]} Rxg5+ {[%emt 0:00:09]} 22. Kf1 {[%emt 0:00:09]} Rf5 {[%emt 0:00:49]} 23. a4 {[%emt 0:01:30]} Rb8 {[%emt 0:00:55]} 24. Rd3 {[%emt 0:02:36]} Rf7 {[%emt 0:00:49]} 25. Kg2 {[%emt 0:01:55]} b5 {[%emt 0:01:49]} 26. axb5 {[%emt 0:00:43]} cxb5 {[%emt 0:00:02]} 27. Ra6 {[%emt 0:00:15]} b4 {[%emt 0:00:15]} 28. Nd5 {[%emt 0:00:19]} Nxd5 {[%emt 0:00:21]} 29. Rxd5 {[%emt 0:00:06]} b3 {[%emt 0:00:21]} 30. c3 {[%emt 0:00:59]} Ba3 {[%emt 0:01:03]} 31. Re6 {[%emt 0:02:59]} Re7 {[%emt 0:00:37]} 32. Rxe7 {[%emt 0:00:07]} Bxe7 {[%emt 0:00:02]} 33. Rxa5 {[%emt 0:00:06]} Kd7 {[%emt 0:00:21]} 34. Be5 {[%emt 0:01:18]} Bd6 {[%emt 0:00:16]} 35. Bd4 {[%emt 0:00:23]} Bf4 {[%emt 0:00:12]} 36. Kf3 {[%emt 0:00:18]} Bc1 {[%emt 0:00:16]} 37. c4 {[%emt 0:00:05]} g5 {[%emt 0:00:15]} 38. Ke4 {[%emt 0:00:29]} Rf8 {[%emt 0:00:20]} 39. Rd5+ {[%emt 0:00:20]} Kc6 {[%emt 0:00:07]} 40. Rc5+ {[%emt 0:00:05]} Kd7 {[%emt 0:00:08]} 41. Rd5+ {[%emt 0:00:05]} Kc6 {[%emt 0:00:06]} 42. Rc5+ {[%emt 0:00:05] Kd5+ [%emt 00:00:17]} 1/2-1/2

[Event "1st GM Brena Baja-La Palma 2019"]
[Site "La Palma"]
[Date "2019.03.31"]
[Round "5.2"]
[White "Herrera Reyes, Jose Antonio"]
[Black "Juhasz, Armin"]
[Result "1/2-1/2"]
[ECO "A12"]
[WhiteElo "2324"]
[BlackElo "2375"]
[Annotator "ChessBase"]
[PlyCount "114"]
[EventDate "2019.03.23"]
[EventType "tourn"]
[EventCountry "ESP"]
[SourceTitle "playchess.com"]
[Source "ChessBase"]
[SourceQuality "1"]
[TimeControl "5400+30"]

1. Nf3 {[%emt 0:01:46]} d5 {[%emt 0:00:00]} 2. g3 {[%emt 0:02:05]} Bg4 {[%emt 0:00:24]} 3. Bg2 {[%emt 0:00:31]} Nd7 {[%emt 0:00:23]} 4. O-O {[%emt 0:02:50]} c6 {[%emt 0:00:12]} 5. d3 {[%emt 0:00:32]} Ngf6 {[%emt 0:00:34]} 6. c4 {[%emt 0:00:37]} e6 {[%emt 0:02:03]} 7. Nbd2 {[%emt 0:02:39]} Bd6 {[%emt 0:04:18]} 8. a3 {[%emt 0:07:52]} a5 {[%emt 0:06:50]} 9. b3 {[%emt 0:01:46]} O-O {[%emt 0:03:08]} 10. Bb2 {[%emt 0:00:18]} Qe7 {[%emt 0:00:44]} 11. Qc2 {[%emt 0:00:17]} e5 {[%emt 0:06:31]} 12. e3 {[%emt 0:04:42]} Rfe8 {[%emt 0:03:57]} 13. Rfe1 {[%emt 0:05:41]} h6 {[%emt 0:01:40]} 14. Nh4 {[%emt 0:04:42]} Qe6 {[%emt 0:05:42]} 15. Rac1 {[%emt 0:10:15]} Bh3 {[%emt 0:07:03]} 16. Bh1 {[%emt 0:01:22]} Qg4 {[%emt 0:02:17]} 17. e4 {[%emt 0:06:12]} dxe4 {[%emt 0:04:06]} 18. dxe4 {[%emt 0:05:28]} Qe6 {[%emt 0:03:59]} 19. Nf1 {[%emt 0:04:35]} Bc5 {[%emt 0:06:53]} 20. Ne3 {[%emt 0:02:07]} Ng4 {[%emt 0:02:03]} 21. Nxg4 {[%emt 0:03:53]} Bxg4 {[%emt 0:00:23]} 22. Nf5 {[%emt 0:02:25]} Nf8 {[%emt 0:03:06]} 23. Ne3 {[%emt 0:03:37]} Ng6 {[%emt 0:06:01]} 24. Qc3 {[%emt 0:04:31]} Bd4 {[%emt 0:01:33]} 25. Qc2 {[%emt 0:00:22]} Bc5 {[%emt 0:05:42]} 26. Qc3 {[%emt 0:00:04]} Bd4 {[%emt 0:00:56]} 27. Qc2 {[%emt 0:00:26]} Bc5 {[%emt 0:00:11]} 28. Qc3 {[%emt 0:00:04]} Bd4 {[%emt 0:00:10]} 29. Qd2 {[%emt 0:03:20]} Red8 {[%emt 0:05:39]} 30. Bc3 {[%emt 0:00:52]} a4 {[%emt 0:00:53]} 31. Bxd4 {[%emt 0:05:27]} Rxd4 {[%emt 0:03:12]} 32. Qb4 {[%emt 0:00:07]} axb3 {[%emt 0:00:59]} 33. Qxb3 {[%emt 0:01:54]} Rd7 {[%emt 0:01:23]} 34. Nxg4 {[%emt 0:03:58]} Qxg4 {[%emt 0:00:10]} 35. Bf3 {[%emt 0:00:12]} Qe6 {[%emt 0:02:03]} 36. Rcd1 {[%emt 0:00:29]} Rad8 {[%emt 0:01:20]} 37. Rxd7 {[%emt 0:00:20]} Rxd7 {[%emt 0:00:14]} 38. Kg2 {[%emt 0:01:37]} Qe7 {[%emt 0:01:47]} 39. Bg4 {[%emt 0:01:08]} Rd2 {[%emt 0:02:30]} 40. Rb1 {[%emt 0:04:48]} Qc5 {[%emt 0:01:10]} 41. Qf3 {[%emt 0:00:04]} b6 {[%emt 0:00:46]} 42. Bh5 {[%emt 0:01:53]} Rd6 {[%emt 0:00:48]} 43. Qb3 {[%emt 0:01:29]} Rd2 {[%emt 0:01:22]} 44. Qxb6 {[%emt 0:00:02]} Qxc4 {[%emt 0:02:12]} 45. Qe3 {[%emt 0:01:52]} Rd3 {[%emt 0:01:21]} 46. Rc1 {[%emt 0:01:10]} Rxe3 {[%emt 0:01:31]} 47. Rxc4 {[%emt 0:00:01]} Rxa3 {[%emt 0:00:07]} 48. Rxc6 {[%emt 0:00:13]} Nf8 {[%emt 0:00:34]} 49. Rc7 {[%emt 0:00:38]} g6 {[%emt 0:00:25]} 50. Be2 {[%emt 0:00:13]} Ne6 {[%emt 0:00:33]} 51. Rc8+ {[%emt 0:00:31]} Kg7 {[%emt 0:00:10]} 52. Bc4 {[%emt 0:00:02]} Kf6 {[%emt 0:00:50]} 53. Bd5 {[%emt 0:00:32]} Ra6 {[%emt 0:00:31]} 54. Rc3 {[%emt 0:00:09]} Kg7 {[%emt 0:00:35]} 55. h4 {[%emt 0:00:27]} h5 {[%emt 0:00:14]} 56. Rb3 {[%emt 0:00:14]} Nc7 {[%emt 0:00:55]} 57. Bc4 {[%emt 0:01:19]} Rc6 {[%emt 0:00:13]} 1/2-1/2

[Event "1st GM Brena Baja-La Palma 2019"]
[Site "La Palma"]
[Date "2019.03.31"]
[Round "5.4"]
[White "De Verdier, Michael"]
[Black "Napoli, Nicolo"]
[Result "1/2-1/2"]
[ECO "B13"]
[WhiteElo "2306"]
[BlackElo "2321"]
[Annotator "NA"]
[PlyCount "92"]
[EventDate "2019.03.23"]
[EventType "tourn"]
[EventCountry "ESP"]
[SourceTitle "playchess.com"]
[Source "ChessBase"]
[SourceQuality "1"]
[TimeControl "5400+30"]

1. e4 {[%emt 0:02:00]} c6 {[%emt 0:00:00]} 2. Nf3 {[%emt 0:00:24]} g6 {[%emt 0:00:59]} 3. d4 {[%emt 0:02:39]} Bg7 {[%emt 0:00:14]} 4. c3 {[%emt 0:00:52]} d5 {[%emt 0:00:55]} 5. exd5 {[%emt 0:02:03]} cxd5 {[%emt 0:00:06]} 6. Bd3 {[%emt 0:00:41] LiveBook: 26 Games} Nc6 {[%emt 0:02:04]} 7. O-O {[%emt 0:03:44]} Qc7 {[%emt 0:03:20] B13: Caro-Kann: Exchange Variation and Panov-Botvinnik Attack} 8. Re1 {[%emt 0:03:26]} Nf6 {[%emt 0:04:42]} 9. Nbd2 {[%emt 0:07:03]} O-O {[%emt 0:00:08]} 10. Nf1 {[%emt 0:01:58]} a6 {[%emt 0:10:18]} (10... Bg4 11. h3 Bxf3 12. Qxf3 e5 13. dxe5 Nxe5 14. Qd1 Nxd3 15. Qxd3 Qc6 16. Be3 Ne4 17. Bd4 {½-½ (45) Karjakin,S (2773)-Vachier Lagrave,M (2779) Saint Louis 2018}) 11. a4 {[%emt 0:09:23]} Rb8 $146 {[%emt 0:00:17]} ({Predecessor:} 11... Bg4 12. Be2 e6 13. Ng3 Nh5 14. Nxh5 Bxh5 15. g3 Na5 16. Bf4 Qb6 17. Ne5 Bxe2 18. Rxe2 {½-½ (30) Tong,K (2049)-Lodes,H (2169) Fuerth 2016}) 12. g3 {[%emt 0:00:37]} Nh5 {[%emt 0:04:32]} 13. Be2 {[%emt 0:09:04]} Bf6 {[%emt 0:13:14]} 14. Ne5 {[%emt 0:12:37]} Ng7 {[%emt 0:09:04]} 15. Ne3 {[%emt 0:09:49]} Qd8 {[%emt 0:04:52]} 16. Bf3 {[%emt 0:08:45]} Bxe5 {[%emt 0:05:02]} 17. dxe5 {[%emt 0:00:19]} d4 {[%emt 0:00:09]} 18. Nd5 {[%emt 0:02:04]} dxc3 {[%emt 0:01:54]} 19. bxc3 {[%emt 0:01:02]} Be6 {[%emt 0:01:58]} 20. Bg5 {[%emt 0:02:01]} Bxd5 {[%emt 0:02:54]} 21. Bxd5 {[%emt 0:01:21]} Na5 {[%emt 0:09:39]} 22. e6 {[%emt 0:05:33]} f6 {[%emt 0:00:04]} 23. Bf4 {[%emt 0:00:58]} Rc8 {[%emt 0:00:05]} 24. Qd3 {[%emt 0:00:51]} Nb3 {[%emt 0:01:19]} 25. Rad1 {[%emt 0:00:48]} Nc5 {[%emt 0:00:05]} 26. Qf3 {[%emt 0:00:51]} Qb6 {[%emt 0:04:20]} 27. Be3 {[%emt 0:03:16]} Nf5 {[%emt 0:01:07]} 28. Bxc5 {[%emt 0:00:43]} Rxc5 {[%emt 0:00:05]} 29. Rb1 {[%emt 0:00:49]} Qa5 {[%emt 0:00:33]} 30. c4 {[%emt 0:02:00]} Nd6 {[%emt 0:00:34]} 31. Qb3 {[%emt 0:00:52]} Rfc8 {[%emt 0:05:26]} 32. Qb6 {[%emt 0:00:30]} Kg7 {[%emt 0:02:05]} 33. Bxb7 {[%emt 0:03:32]} Qxb6 {[%emt 0:02:35]} 34. Rxb6 {[%emt 0:00:02]} Rb8 {[%emt 0:00:01]} 35. Reb1 {[%emt 0:00:48]} Rxc4 {[%emt 0:02:41]} 36. Bc6 {[%emt 0:01:54]} Rc1+ {[%emt 0:02:02]} 37. Rxc1 {[%emt 0:00:00]} Rxb6 {[%emt 0:00:03]} 38. Bd7 {[%emt 0:00:02]} a5 {[%emt 0:01:02]} 39. Rc5 {[%emt 0:01:20]} Ra6 {[%emt 0:00:05]} 40. Rc7 {[%emt 0:00:06]} f5 {[%emt 0:01:15]} 41. Bb5 {[%emt 0:00:57]} Nxb5 {[%emt 0:01:05]} 42. Rxe7+ {[%emt 0:00:55]} Kf6 {[%emt 0:00:04]} 43. axb5 {[%emt 0:00:02]} Rb6 $11 {[%emt 0:00:32]} 44. Rxh7 {[%emt 0:00:12]} Kxe6 {[%emt 0:03:22]} 45. Ra7 {[%emt 0:00:46]} Rxb5 {[%emt 0:00:04]} 46. Ra6+ {[%emt 0:00:09]} Kf7 {[%emt 0:01:25]} 1/2-1/2